{"text_format":"1","workbook":"xlsx","n_sheets":3,"sheets":["SF BÁSICOS Y MÁXIMOS","Hoja1","LISTA 2"],"not_rendered":{"charts":0,"images":1,"macros":1,"external_links":0,"defined_names":48,"comments":0,"pivot_tables":0},"unopened":[],"bounds":{"document_bytes":16777216,"sheet_cells":100000,"rows_first":2000,"rows_last":500,"rows_between":2000,"halvings":0,"cell_chars":16384,"cell_head_chars":4096},"cells_cut":0,"cells_raw":0,"read":"whole","date_system":"1900"}

{"sheet":"SF BÁSICOS Y MÁXIMOS","index":0,"n_rows":364,"n_cols":12,"rows_kept":364,"cut":false,"hidden":false,"merged":[[12,11,13,11],[12,5,12,7],[12,1,13,1],[12,8,12,9],[12,10,13,10],[12,3,13,3],[12,4,13,4],[12,2,13,2]]}
[]
[]
[]
[]
[]
[]
[]
[]
[null,"RUC:"]
[null,"RAZÓN SOCIAL:"]
[null,"FECHA DE CORTE:"]
[]
[null,"No.","NOMBRE COMERCIAL DEL SERVICIO","SERVICIO","TIPO DE SERVICIO","AUTORIZACIÓN ANTES DE LA NORMA VIGENTE",null,null,"CARGO UNITARIO",null,"NÚMERO  DE TRANSACCIONES \n(Anual)","REGISTRO CONTABLE\n(CÓDIGO DE CUENTA)"]
[null,null,null,null,null,"ORGANISMO DE CONTROL","FECHA","NÚMERO","VALOR SIN IVA","PORCENTUAL"]
[null,{"$f":"+B14+1","v":1},null,null,{"$f":"IFERROR(VLOOKUP(D15,Hoja1!$A$3:$C$144,3,FALSE),\" \")","v":" "}]
[null,{"$f":"+B15+1","v":2},null,null,{"$f":"IFERROR(VLOOKUP(D16,Hoja1!$A$3:$C$144,3,FALSE),\" \")","v":" "}]
[null,3,null,null,{"$f":"IFERROR(VLOOKUP(D17,Hoja1!$A$3:$C$144,3,FALSE),\" \")","v":" "}]
[null,4,null,null,{"$f":"IFERROR(VLOOKUP(D18,Hoja1!$A$3:$C$144,3,FALSE),\" \")","v":" "}]
[null,5,null,null,{"$f":"IFERROR(VLOOKUP(D19,Hoja1!$A$3:$C$144,3,FALSE),\" \")","v":" "}]
[null,6,null,null,{"$f":"IFERROR(VLOOKUP(D20,Hoja1!$A$3:$C$144,3,FALSE),\" \")","v":" "}]
[null,7,null,null,{"$f":"IFERROR(VLOOKUP(D21,Hoja1!$A$3:$C$144,3,FALSE),\" \")","v":" "}]
[null,8,null,null,{"$f":"IFERROR(VLOOKUP(D22,Hoja1!$A$3:$C$144,3,FALSE),\" \")","v":" "}]
[null,9,null,null,{"$f":"IFERROR(VLOOKUP(D23,Hoja1!$A$3:$C$144,3,FALSE),\" \")","v":" "}]
[null,10,null,null,{"$f":"IFERROR(VLOOKUP(D24,Hoja1!$A$3:$C$144,3,FALSE),\" \")","v":" "}]
[null,11,null,null,{"$f":"IFERROR(VLOOKUP(D25,Hoja1!$A$3:$C$144,3,FALSE),\" \")","v":" "}]
[null,12,null,null,{"$f":"IFERROR(VLOOKUP(D26,Hoja1!$A$3:$C$144,3,FALSE),\" \")","v":" "}]
[null,13,null,null,{"$f":"IFERROR(VLOOKUP(D27,Hoja1!$A$3:$C$144,3,FALSE),\" \")","v":" "}]
[null,14,null,null,{"$f":"IFERROR(VLOOKUP(D28,Hoja1!$A$3:$C$144,3,FALSE),\" \")","v":" "}]
[null,15,null,null,{"$f":"IFERROR(VLOOKUP(D29,Hoja1!$A$3:$C$144,3,FALSE),\" \")","v":" "}]
[null,16,null,null,{"$f":"IFERROR(VLOOKUP(D30,Hoja1!$A$3:$C$144,3,FALSE),\" \")","v":" "}]
[null,17,null,null,{"$f":"IFERROR(VLOOKUP(D31,Hoja1!$A$3:$C$144,3,FALSE),\" \")","v":" "}]
[null,18,null,null,{"$f":"IFERROR(VLOOKUP(D32,Hoja1!$A$3:$C$144,3,FALSE),\" \")","v":" "}]
[null,19,null,null,{"$f":"IFERROR(VLOOKUP(D33,Hoja1!$A$3:$C$144,3,FALSE),\" \")","v":" "}]
[null,20,null,null,{"$f":"IFERROR(VLOOKUP(D34,Hoja1!$A$3:$C$144,3,FALSE),\" \")","v":" "}]
[null,21,null,null,{"$f":"IFERROR(VLOOKUP(D35,Hoja1!$A$3:$C$144,3,FALSE),\" \")","v":" "}]
[null,22,null,null,{"$f":"IFERROR(VLOOKUP(D36,Hoja1!$A$3:$C$144,3,FALSE),\" \")","v":" "}]
[null,23,null,null,{"$f":"IFERROR(VLOOKUP(D37,Hoja1!$A$3:$C$144,3,FALSE),\" \")","v":" "}]
[null,24,null,null,{"$f":"IFERROR(VLOOKUP(D38,Hoja1!$A$3:$C$144,3,FALSE),\" \")","v":" "}]
[null,25,null,null,{"$f":"IFERROR(VLOOKUP(D39,Hoja1!$A$3:$C$144,3,FALSE),\" \")","v":" "}]
[null,26,null,null,{"$f":"IFERROR(VLOOKUP(D40,Hoja1!$A$3:$C$144,3,FALSE),\" \")","v":" "}]
[null,27,null,null,{"$f":"IFERROR(VLOOKUP(D41,Hoja1!$A$3:$C$144,3,FALSE),\" \")","v":" "}]
[null,28,null,null,{"$f":"IFERROR(VLOOKUP(D42,Hoja1!$A$3:$C$144,3,FALSE),\" \")","v":" "}]
[null,29,null,null,{"$f":"IFERROR(VLOOKUP(D43,Hoja1!$A$3:$C$144,3,FALSE),\" \")","v":" "}]
[null,30,null,null,{"$f":"IFERROR(VLOOKUP(D44,Hoja1!$A$3:$C$144,3,FALSE),\" \")","v":" "}]
[null,31,null,null,{"$f":"IFERROR(VLOOKUP(D45,Hoja1!$A$3:$C$144,3,FALSE),\" \")","v":" "}]
[null,32,null,null,{"$f":"IFERROR(VLOOKUP(D46,Hoja1!$A$3:$C$144,3,FALSE),\" \")","v":" "}]
[null,33,null,null,{"$f":"IFERROR(VLOOKUP(D47,Hoja1!$A$3:$C$144,3,FALSE),\" \")","v":" "}]
[null,34,null,null,{"$f":"IFERROR(VLOOKUP(D48,Hoja1!$A$3:$C$144,3,FALSE),\" \")","v":" "}]
[null,35,null,null,{"$f":"IFERROR(VLOOKUP(D49,Hoja1!$A$3:$C$144,3,FALSE),\" \")","v":" "}]
[null,36,null,null,{"$f":"IFERROR(VLOOKUP(D50,Hoja1!$A$3:$C$144,3,FALSE),\" \")","v":" "}]
[null,37,null,null,{"$f":"IFERROR(VLOOKUP(D51,Hoja1!$A$3:$C$144,3,FALSE),\" \")","v":" "}]
[null,38,null,null,{"$f":"IFERROR(VLOOKUP(D52,Hoja1!$A$3:$C$144,3,FALSE),\" \")","v":" "}]
[null,39,null,null,{"$f":"IFERROR(VLOOKUP(D53,Hoja1!$A$3:$C$144,3,FALSE),\" \")","v":" "}]
[null,40,null,null,{"$f":"IFERROR(VLOOKUP(D54,Hoja1!$A$3:$C$144,3,FALSE),\" \")","v":" "}]
[null,41,null,null,{"$f":"IFERROR(VLOOKUP(D55,Hoja1!$A$3:$C$144,3,FALSE),\" \")","v":" "}]
[null,42,null,null,{"$f":"IFERROR(VLOOKUP(D56,Hoja1!$A$3:$C$144,3,FALSE),\" \")","v":" "}]
[null,43,null,null,{"$f":"IFERROR(VLOOKUP(D57,Hoja1!$A$3:$C$144,3,FALSE),\" \")","v":" "}]
[null,44,null,null,{"$f":"IFERROR(VLOOKUP(D58,Hoja1!$A$3:$C$144,3,FALSE),\" \")","v":" "}]
[null,45,null,null,{"$f":"IFERROR(VLOOKUP(D59,Hoja1!$A$3:$C$144,3,FALSE),\" \")","v":" "}]
[null,46,null,null,{"$f":"IFERROR(VLOOKUP(D60,Hoja1!$A$3:$C$144,3,FALSE),\" \")","v":" "}]
[null,47,null,null,{"$f":"IFERROR(VLOOKUP(D61,Hoja1!$A$3:$C$144,3,FALSE),\" \")","v":" "}]
[null,48,null,null,{"$f":"IFERROR(VLOOKUP(D62,Hoja1!$A$3:$C$144,3,FALSE),\" \")","v":" "}]
[null,49,null,null,{"$f":"IFERROR(VLOOKUP(D63,Hoja1!$A$3:$C$144,3,FALSE),\" \")","v":" "}]
[null,50,null,null,{"$f":"IFERROR(VLOOKUP(D64,Hoja1!$A$3:$C$144,3,FALSE),\" \")","v":" "}]
[null,51,null,null,{"$f":"IFERROR(VLOOKUP(D65,Hoja1!$A$3:$C$144,3,FALSE),\" \")","v":" "}]
[null,52,null,null,{"$f":"IFERROR(VLOOKUP(D66,Hoja1!$A$3:$C$144,3,FALSE),\" \")","v":" "}]
[null,53,null,null,{"$f":"IFERROR(VLOOKUP(D67,Hoja1!$A$3:$C$144,3,FALSE),\" \")","v":" "}]
[null,54,null,null,{"$f":"IFERROR(VLOOKUP(D68,Hoja1!$A$3:$C$144,3,FALSE),\" \")","v":" "}]
[null,55,null,null,{"$f":"IFERROR(VLOOKUP(D69,Hoja1!$A$3:$C$144,3,FALSE),\" \")","v":" "}]
[null,56,null,null,{"$f":"IFERROR(VLOOKUP(D70,Hoja1!$A$3:$C$144,3,FALSE),\" \")","v":" "}]
[null,57,null,null,{"$f":"IFERROR(VLOOKUP(D71,Hoja1!$A$3:$C$144,3,FALSE),\" \")","v":" "}]
[null,58,null,null,{"$f":"IFERROR(VLOOKUP(D72,Hoja1!$A$3:$C$144,3,FALSE),\" \")","v":" "}]
[null,59,null,null,{"$f":"IFERROR(VLOOKUP(D73,Hoja1!$A$3:$C$144,3,FALSE),\" \")","v":" "}]
[null,60,null,null,{"$f":"IFERROR(VLOOKUP(D74,Hoja1!$A$3:$C$144,3,FALSE),\" \")","v":" "}]
[null,61,null,null,{"$f":"IFERROR(VLOOKUP(D75,Hoja1!$A$3:$C$144,3,FALSE),\" \")","v":" "}]
[null,62,null,null,{"$f":"IFERROR(VLOOKUP(D76,Hoja1!$A$3:$C$144,3,FALSE),\" \")","v":" "}]
[null,63,null,null,{"$f":"IFERROR(VLOOKUP(D77,Hoja1!$A$3:$C$144,3,FALSE),\" \")","v":" "}]
[null,64,null,null,{"$f":"IFERROR(VLOOKUP(D78,Hoja1!$A$3:$C$144,3,FALSE),\" \")","v":" "}]
[null,65,null,null,{"$f":"IFERROR(VLOOKUP(D79,Hoja1!$A$3:$C$144,3,FALSE),\" \")","v":" "}]
[null,66,null,null,{"$f":"IFERROR(VLOOKUP(D80,Hoja1!$A$3:$C$144,3,FALSE),\" \")","v":" "}]
[null,67,null,null,{"$f":"IFERROR(VLOOKUP(D81,Hoja1!$A$3:$C$144,3,FALSE),\" \")","v":" "}]
[null,68,null,null,{"$f":"IFERROR(VLOOKUP(D82,Hoja1!$A$3:$C$144,3,FALSE),\" \")","v":" "}]
[null,69,null,null,{"$f":"IFERROR(VLOOKUP(D83,Hoja1!$A$3:$C$144,3,FALSE),\" \")","v":" "}]
[null,70,null,null,{"$f":"IFERROR(VLOOKUP(D84,Hoja1!$A$3:$C$144,3,FALSE),\" \")","v":" "}]
[null,71,null,null,{"$f":"IFERROR(VLOOKUP(D85,Hoja1!$A$3:$C$144,3,FALSE),\" \")","v":" "}]
[null,72,null,null,{"$f":"IFERROR(VLOOKUP(D86,Hoja1!$A$3:$C$144,3,FALSE),\" \")","v":" "}]
[null,73,null,null,{"$f":"IFERROR(VLOOKUP(D87,Hoja1!$A$3:$C$144,3,FALSE),\" \")","v":" "}]
[null,74,null,null,{"$f":"IFERROR(VLOOKUP(D88,Hoja1!$A$3:$C$144,3,FALSE),\" \")","v":" "}]
[null,75,null,null,{"$f":"IFERROR(VLOOKUP(D89,Hoja1!$A$3:$C$144,3,FALSE),\" \")","v":" "}]
[null,76,null,null,{"$f":"IFERROR(VLOOKUP(D90,Hoja1!$A$3:$C$144,3,FALSE),\" \")","v":" "}]
[null,77,null,null,{"$f":"IFERROR(VLOOKUP(D91,Hoja1!$A$3:$C$144,3,FALSE),\" \")","v":" "}]
[null,78,null,null,{"$f":"IFERROR(VLOOKUP(D92,Hoja1!$A$3:$C$144,3,FALSE),\" \")","v":" "}]
[null,79,null,null,{"$f":"IFERROR(VLOOKUP(D93,Hoja1!$A$3:$C$144,3,FALSE),\" \")","v":" "}]
[null,80,null,null,{"$f":"IFERROR(VLOOKUP(D94,Hoja1!$A$3:$C$144,3,FALSE),\" \")","v":" "}]
[null,81,null,null,{"$f":"IFERROR(VLOOKUP(D95,Hoja1!$A$3:$C$144,3,FALSE),\" \")","v":" "}]
[null,82,null,null,{"$f":"IFERROR(VLOOKUP(D96,Hoja1!$A$3:$C$144,3,FALSE),\" \")","v":" "}]
[null,83,null,null,{"$f":"IFERROR(VLOOKUP(D97,Hoja1!$A$3:$C$144,3,FALSE),\" \")","v":" "}]
[null,84,null,null,{"$f":"IFERROR(VLOOKUP(D98,Hoja1!$A$3:$C$144,3,FALSE),\" \")","v":" "}]
[null,85,null,null,{"$f":"IFERROR(VLOOKUP(D99,Hoja1!$A$3:$C$144,3,FALSE),\" \")","v":" "}]
[null,86,null,null,{"$f":"IFERROR(VLOOKUP(D100,Hoja1!$A$3:$C$144,3,FALSE),\" \")","v":" "}]
[null,87,null,null,{"$f":"IFERROR(VLOOKUP(D101,Hoja1!$A$3:$C$144,3,FALSE),\" \")","v":" "}]
[null,88,null,null,{"$f":"IFERROR(VLOOKUP(D102,Hoja1!$A$3:$C$144,3,FALSE),\" \")","v":" "}]
[null,89,null,null,{"$f":"IFERROR(VLOOKUP(D103,Hoja1!$A$3:$C$144,3,FALSE),\" \")","v":" "}]
[null,90,null,null,{"$f":"IFERROR(VLOOKUP(D104,Hoja1!$A$3:$C$144,3,FALSE),\" \")","v":" "}]
[null,91,null,null,{"$f":"IFERROR(VLOOKUP(D105,Hoja1!$A$3:$C$144,3,FALSE),\" \")","v":" "}]
[null,92,null,null,{"$f":"IFERROR(VLOOKUP(D106,Hoja1!$A$3:$C$144,3,FALSE),\" \")","v":" "}]
[null,93,null,null,{"$f":"IFERROR(VLOOKUP(D107,Hoja1!$A$3:$C$144,3,FALSE),\" \")","v":" "}]
[null,94,null,null,{"$f":"IFERROR(VLOOKUP(D108,Hoja1!$A$3:$C$144,3,FALSE),\" \")","v":" "}]
[null,95,null,null,{"$f":"IFERROR(VLOOKUP(D109,Hoja1!$A$3:$C$144,3,FALSE),\" \")","v":" "}]
[null,96,null,null,{"$f":"IFERROR(VLOOKUP(D110,Hoja1!$A$3:$C$144,3,FALSE),\" \")","v":" "}]
[null,97,null,null,{"$f":"IFERROR(VLOOKUP(D111,Hoja1!$A$3:$C$144,3,FALSE),\" \")","v":" "}]
[null,98,null,null,{"$f":"IFERROR(VLOOKUP(D112,Hoja1!$A$3:$C$144,3,FALSE),\" \")","v":" "}]
[null,99,null,null,{"$f":"IFERROR(VLOOKUP(D113,Hoja1!$A$3:$C$144,3,FALSE),\" \")","v":" "}]
[null,100,null,null,{"$f":"IFERROR(VLOOKUP(D114,Hoja1!$A$3:$C$144,3,FALSE),\" \")","v":" "}]
[null,101,null,null,{"$f":"IFERROR(VLOOKUP(D115,Hoja1!$A$3:$C$144,3,FALSE),\" \")","v":" "}]
[null,102,null,null,{"$f":"IFERROR(VLOOKUP(D116,Hoja1!$A$3:$C$144,3,FALSE),\" \")","v":" "}]
[null,103,null,null,{"$f":"IFERROR(VLOOKUP(D117,Hoja1!$A$3:$C$144,3,FALSE),\" \")","v":" "}]
[null,104,null,null,{"$f":"IFERROR(VLOOKUP(D118,Hoja1!$A$3:$C$144,3,FALSE),\" \")","v":" "}]
[null,105,null,null,{"$f":"IFERROR(VLOOKUP(D119,Hoja1!$A$3:$C$144,3,FALSE),\" \")","v":" "}]
[null,106,null,null,{"$f":"IFERROR(VLOOKUP(D120,Hoja1!$A$3:$C$144,3,FALSE),\" \")","v":" "}]
[null,107,null,null,{"$f":"IFERROR(VLOOKUP(D121,Hoja1!$A$3:$C$144,3,FALSE),\" \")","v":" "}]
[null,108,null,null,{"$f":"IFERROR(VLOOKUP(D122,Hoja1!$A$3:$C$144,3,FALSE),\" \")","v":" "}]
[null,109,null,null,{"$f":"IFERROR(VLOOKUP(D123,Hoja1!$A$3:$C$144,3,FALSE),\" \")","v":" "}]
[null,110,null,null,{"$f":"IFERROR(VLOOKUP(D124,Hoja1!$A$3:$C$144,3,FALSE),\" \")","v":" "}]
[null,111,null,null,{"$f":"IFERROR(VLOOKUP(D125,Hoja1!$A$3:$C$144,3,FALSE),\" \")","v":" "}]
[null,112,null,null,{"$f":"IFERROR(VLOOKUP(D126,Hoja1!$A$3:$C$144,3,FALSE),\" \")","v":" "}]
[null,113,null,null,{"$f":"IFERROR(VLOOKUP(D127,Hoja1!$A$3:$C$144,3,FALSE),\" \")","v":" "}]
[null,114,null,null,{"$f":"IFERROR(VLOOKUP(D128,Hoja1!$A$3:$C$144,3,FALSE),\" \")","v":" "}]
[null,115,null,null,{"$f":"IFERROR(VLOOKUP(D129,Hoja1!$A$3:$C$144,3,FALSE),\" \")","v":" "}]
[null,116,null,null,{"$f":"IFERROR(VLOOKUP(D130,Hoja1!$A$3:$C$144,3,FALSE),\" \")","v":" "}]
[null,117,null,null,{"$f":"IFERROR(VLOOKUP(D131,Hoja1!$A$3:$C$144,3,FALSE),\" \")","v":" "}]
[null,118,null,null,{"$f":"IFERROR(VLOOKUP(D132,Hoja1!$A$3:$C$144,3,FALSE),\" \")","v":" "}]
[null,119,null,null,{"$f":"IFERROR(VLOOKUP(D133,Hoja1!$A$3:$C$144,3,FALSE),\" \")","v":" "}]
[null,120,null,null,{"$f":"IFERROR(VLOOKUP(D134,Hoja1!$A$3:$C$144,3,FALSE),\" \")","v":" "}]
[null,121,null,null,{"$f":"IFERROR(VLOOKUP(D135,Hoja1!$A$3:$C$144,3,FALSE),\" \")","v":" "}]
[null,122,null,null,{"$f":"IFERROR(VLOOKUP(D136,Hoja1!$A$3:$C$144,3,FALSE),\" \")","v":" "}]
[null,123,null,null,{"$f":"IFERROR(VLOOKUP(D137,Hoja1!$A$3:$C$144,3,FALSE),\" \")","v":" "}]
[null,124,null,null,{"$f":"IFERROR(VLOOKUP(D138,Hoja1!$A$3:$C$144,3,FALSE),\" \")","v":" "}]
[null,125,null,null,{"$f":"IFERROR(VLOOKUP(D139,Hoja1!$A$3:$C$144,3,FALSE),\" \")","v":" "}]
[null,126,null,null,{"$f":"IFERROR(VLOOKUP(D140,Hoja1!$A$3:$C$144,3,FALSE),\" \")","v":" "}]
[null,127,null,null,{"$f":"IFERROR(VLOOKUP(D141,Hoja1!$A$3:$C$144,3,FALSE),\" \")","v":" "}]
[null,128,null,null,{"$f":"IFERROR(VLOOKUP(D142,Hoja1!$A$3:$C$144,3,FALSE),\" \")","v":" "}]
[null,129,null,null,{"$f":"IFERROR(VLOOKUP(D143,Hoja1!$A$3:$C$144,3,FALSE),\" \")","v":" "}]
[null,130,null,null,{"$f":"IFERROR(VLOOKUP(D144,Hoja1!$A$3:$C$144,3,FALSE),\" \")","v":" "}]
[null,131,null,null,{"$f":"IFERROR(VLOOKUP(D145,Hoja1!$A$3:$C$144,3,FALSE),\" \")","v":" "}]
[null,132,null,null,{"$f":"IFERROR(VLOOKUP(D146,Hoja1!$A$3:$C$144,3,FALSE),\" \")","v":" "}]
[null,133,null,null,{"$f":"IFERROR(VLOOKUP(D147,Hoja1!$A$3:$C$144,3,FALSE),\" \")","v":" "}]
[null,134,null,null,{"$f":"IFERROR(VLOOKUP(D148,Hoja1!$A$3:$C$144,3,FALSE),\" \")","v":" "}]
[null,135,null,null,{"$f":"IFERROR(VLOOKUP(D149,Hoja1!$A$3:$C$144,3,FALSE),\" \")","v":" "}]
[null,136,null,null,{"$f":"IFERROR(VLOOKUP(D150,Hoja1!$A$3:$C$144,3,FALSE),\" \")","v":" "}]
[null,137,null,null,{"$f":"IFERROR(VLOOKUP(D151,Hoja1!$A$3:$C$144,3,FALSE),\" \")","v":" "}]
[null,138,null,null,{"$f":"IFERROR(VLOOKUP(D152,Hoja1!$A$3:$C$144,3,FALSE),\" \")","v":" "}]
[null,139,null,null,{"$f":"IFERROR(VLOOKUP(D153,Hoja1!$A$3:$C$144,3,FALSE),\" \")","v":" "}]
[null,140,null,null,{"$f":"IFERROR(VLOOKUP(D154,Hoja1!$A$3:$C$144,3,FALSE),\" \")","v":" "}]
[null,141,null,null,{"$f":"IFERROR(VLOOKUP(D155,Hoja1!$A$3:$C$144,3,FALSE),\" \")","v":" "}]
[null,142,null,null,{"$f":"IFERROR(VLOOKUP(D156,Hoja1!$A$3:$C$144,3,FALSE),\" \")","v":" "}]
[null,143,null,null,{"$f":"IFERROR(VLOOKUP(D157,Hoja1!$A$3:$C$144,3,FALSE),\" \")","v":" "}]
[null,144,null,null,{"$f":"IFERROR(VLOOKUP(D158,Hoja1!$A$3:$C$144,3,FALSE),\" \")","v":" "}]
[null,145,null,null,{"$f":"IFERROR(VLOOKUP(D159,Hoja1!$A$3:$C$144,3,FALSE),\" \")","v":" "}]
[null,146,null,null,{"$f":"IFERROR(VLOOKUP(D160,Hoja1!$A$3:$C$144,3,FALSE),\" \")","v":" "}]
[null,147,null,null,{"$f":"IFERROR(VLOOKUP(D161,Hoja1!$A$3:$C$144,3,FALSE),\" \")","v":" "}]
[null,148,null,null,{"$f":"IFERROR(VLOOKUP(D162,Hoja1!$A$3:$C$144,3,FALSE),\" \")","v":" "}]
[null,149,null,null,{"$f":"IFERROR(VLOOKUP(D163,Hoja1!$A$3:$C$144,3,FALSE),\" \")","v":" "}]
[null,150,null,null,{"$f":"IFERROR(VLOOKUP(D164,Hoja1!$A$3:$C$144,3,FALSE),\" \")","v":" "}]
[null,151,null,null,{"$f":"IFERROR(VLOOKUP(D165,Hoja1!$A$3:$C$144,3,FALSE),\" \")","v":" "}]
[null,152,null,null,{"$f":"IFERROR(VLOOKUP(D166,Hoja1!$A$3:$C$144,3,FALSE),\" \")","v":" "}]
[null,153,null,null,{"$f":"IFERROR(VLOOKUP(D167,Hoja1!$A$3:$C$144,3,FALSE),\" \")","v":" "}]
[null,154,null,null,{"$f":"IFERROR(VLOOKUP(D168,Hoja1!$A$3:$C$144,3,FALSE),\" \")","v":" "}]
[null,155,null,null,{"$f":"IFERROR(VLOOKUP(D169,Hoja1!$A$3:$C$144,3,FALSE),\" \")","v":" "}]
[null,156,null,null,{"$f":"IFERROR(VLOOKUP(D170,Hoja1!$A$3:$C$144,3,FALSE),\" \")","v":" "}]
[null,157,null,null,{"$f":"IFERROR(VLOOKUP(D171,Hoja1!$A$3:$C$144,3,FALSE),\" \")","v":" "}]
[null,158,null,null,{"$f":"IFERROR(VLOOKUP(D172,Hoja1!$A$3:$C$144,3,FALSE),\" \")","v":" "}]
[null,159,null,null,{"$f":"IFERROR(VLOOKUP(D173,Hoja1!$A$3:$C$144,3,FALSE),\" \")","v":" "}]
[null,160,null,null,{"$f":"IFERROR(VLOOKUP(D174,Hoja1!$A$3:$C$144,3,FALSE),\" \")","v":" "}]
[null,161,null,null,{"$f":"IFERROR(VLOOKUP(D175,Hoja1!$A$3:$C$144,3,FALSE),\" \")","v":" "}]
[null,162,null,null,{"$f":"IFERROR(VLOOKUP(D176,Hoja1!$A$3:$C$144,3,FALSE),\" \")","v":" "}]
[null,163,null,null,{"$f":"IFERROR(VLOOKUP(D177,Hoja1!$A$3:$C$144,3,FALSE),\" \")","v":" "}]
[null,164,null,null,{"$f":"IFERROR(VLOOKUP(D178,Hoja1!$A$3:$C$144,3,FALSE),\" \")","v":" "}]
[null,165,null,null,{"$f":"IFERROR(VLOOKUP(D179,Hoja1!$A$3:$C$144,3,FALSE),\" \")","v":" "}]
[null,166,null,null,{"$f":"IFERROR(VLOOKUP(D180,Hoja1!$A$3:$C$144,3,FALSE),\" \")","v":" "}]
[null,167,null,null,{"$f":"IFERROR(VLOOKUP(D181,Hoja1!$A$3:$C$144,3,FALSE),\" \")","v":" "}]
[null,168,null,null,{"$f":"IFERROR(VLOOKUP(D182,Hoja1!$A$3:$C$144,3,FALSE),\" \")","v":" "}]
[null,169,null,null,{"$f":"IFERROR(VLOOKUP(D183,Hoja1!$A$3:$C$144,3,FALSE),\" \")","v":" "}]
[null,170,null,null,{"$f":"IFERROR(VLOOKUP(D184,Hoja1!$A$3:$C$144,3,FALSE),\" \")","v":" "}]
[null,171,null,null,{"$f":"IFERROR(VLOOKUP(D185,Hoja1!$A$3:$C$144,3,FALSE),\" \")","v":" "}]
[null,172,null,null,{"$f":"IFERROR(VLOOKUP(D186,Hoja1!$A$3:$C$144,3,FALSE),\" \")","v":" "}]
[null,173,null,null,{"$f":"IFERROR(VLOOKUP(D187,Hoja1!$A$3:$C$144,3,FALSE),\" \")","v":" "}]
[null,174,null,null,{"$f":"IFERROR(VLOOKUP(D188,Hoja1!$A$3:$C$144,3,FALSE),\" \")","v":" "}]
[null,175,null,null,{"$f":"IFERROR(VLOOKUP(D189,Hoja1!$A$3:$C$144,3,FALSE),\" \")","v":" "}]
[null,176,null,null,{"$f":"IFERROR(VLOOKUP(D190,Hoja1!$A$3:$C$144,3,FALSE),\" \")","v":" "}]
[null,177,null,null,{"$f":"IFERROR(VLOOKUP(D191,Hoja1!$A$3:$C$144,3,FALSE),\" \")","v":" "}]
[null,178,null,null,{"$f":"IFERROR(VLOOKUP(D192,Hoja1!$A$3:$C$144,3,FALSE),\" \")","v":" "}]
[null,179,null,null,{"$f":"IFERROR(VLOOKUP(D193,Hoja1!$A$3:$C$144,3,FALSE),\" \")","v":" "}]
[null,180,null,null,{"$f":"IFERROR(VLOOKUP(D194,Hoja1!$A$3:$C$144,3,FALSE),\" \")","v":" "}]
[null,181,null,null,{"$f":"IFERROR(VLOOKUP(D195,Hoja1!$A$3:$C$144,3,FALSE),\" \")","v":" "}]
[null,182,null,null,{"$f":"IFERROR(VLOOKUP(D196,Hoja1!$A$3:$C$144,3,FALSE),\" \")","v":" "}]
[null,183,null,null,{"$f":"IFERROR(VLOOKUP(D197,Hoja1!$A$3:$C$144,3,FALSE),\" \")","v":" "}]
[null,184,null,null,{"$f":"IFERROR(VLOOKUP(D198,Hoja1!$A$3:$C$144,3,FALSE),\" \")","v":" "}]
[null,185,null,null,{"$f":"IFERROR(VLOOKUP(D199,Hoja1!$A$3:$C$144,3,FALSE),\" \")","v":" "}]
[null,186,null,null,{"$f":"IFERROR(VLOOKUP(D200,Hoja1!$A$3:$C$144,3,FALSE),\" \")","v":" "}]
[null,187,null,null,{"$f":"IFERROR(VLOOKUP(D201,Hoja1!$A$3:$C$144,3,FALSE),\" \")","v":" "}]
[null,188,null,null,{"$f":"IFERROR(VLOOKUP(D202,Hoja1!$A$3:$C$144,3,FALSE),\" \")","v":" "}]
[null,189,null,null,{"$f":"IFERROR(VLOOKUP(D203,Hoja1!$A$3:$C$144,3,FALSE),\" \")","v":" "}]
[null,190,null,null,{"$f":"IFERROR(VLOOKUP(D204,Hoja1!$A$3:$C$144,3,FALSE),\" \")","v":" "}]
[null,191,null,null,{"$f":"IFERROR(VLOOKUP(D205,Hoja1!$A$3:$C$144,3,FALSE),\" \")","v":" "}]
[null,192,null,null,{"$f":"IFERROR(VLOOKUP(D206,Hoja1!$A$3:$C$144,3,FALSE),\" \")","v":" "}]
[null,193,null,null,{"$f":"IFERROR(VLOOKUP(D207,Hoja1!$A$3:$C$144,3,FALSE),\" \")","v":" "}]
[null,194,null,null,{"$f":"IFERROR(VLOOKUP(D208,Hoja1!$A$3:$C$144,3,FALSE),\" \")","v":" "}]
[null,195,null,null,{"$f":"IFERROR(VLOOKUP(D209,Hoja1!$A$3:$C$144,3,FALSE),\" \")","v":" "}]
[null,196,null,null,{"$f":"IFERROR(VLOOKUP(D210,Hoja1!$A$3:$C$144,3,FALSE),\" \")","v":" "}]
[null,197,null,null,{"$f":"IFERROR(VLOOKUP(D211,Hoja1!$A$3:$C$144,3,FALSE),\" \")","v":" "}]
[null,198,null,null,{"$f":"IFERROR(VLOOKUP(D212,Hoja1!$A$3:$C$144,3,FALSE),\" \")","v":" "}]
[null,199,null,null,{"$f":"IFERROR(VLOOKUP(D213,Hoja1!$A$3:$C$144,3,FALSE),\" \")","v":" "}]
[null,200,null,null,{"$f":"IFERROR(VLOOKUP(D214,Hoja1!$A$3:$C$144,3,FALSE),\" \")","v":" "}]
[null,201,null,null,{"$f":"IFERROR(VLOOKUP(D215,Hoja1!$A$3:$C$144,3,FALSE),\" \")","v":" "}]
[null,202,null,null,{"$f":"IFERROR(VLOOKUP(D216,Hoja1!$A$3:$C$144,3,FALSE),\" \")","v":" "}]
[null,203,null,null,{"$f":"IFERROR(VLOOKUP(D217,Hoja1!$A$3:$C$144,3,FALSE),\" \")","v":" "}]
[null,204,null,null,{"$f":"IFERROR(VLOOKUP(D218,Hoja1!$A$3:$C$144,3,FALSE),\" \")","v":" "}]
[null,205,null,null,{"$f":"IFERROR(VLOOKUP(D219,Hoja1!$A$3:$C$144,3,FALSE),\" \")","v":" "}]
[null,206,null,null,{"$f":"IFERROR(VLOOKUP(D220,Hoja1!$A$3:$C$144,3,FALSE),\" \")","v":" "}]
[null,207,null,null,{"$f":"IFERROR(VLOOKUP(D221,Hoja1!$A$3:$C$144,3,FALSE),\" \")","v":" "}]
[null,208,null,null,{"$f":"IFERROR(VLOOKUP(D222,Hoja1!$A$3:$C$144,3,FALSE),\" \")","v":" "}]
[null,209,null,null,{"$f":"IFERROR(VLOOKUP(D223,Hoja1!$A$3:$C$144,3,FALSE),\" \")","v":" "}]
[null,210,null,null,{"$f":"IFERROR(VLOOKUP(D224,Hoja1!$A$3:$C$144,3,FALSE),\" \")","v":" "}]
[null,211,null,null,{"$f":"IFERROR(VLOOKUP(D225,Hoja1!$A$3:$C$144,3,FALSE),\" \")","v":" "}]
[null,212,null,null,{"$f":"IFERROR(VLOOKUP(D226,Hoja1!$A$3:$C$144,3,FALSE),\" \")","v":" "}]
[null,213,null,null,{"$f":"IFERROR(VLOOKUP(D227,Hoja1!$A$3:$C$144,3,FALSE),\" \")","v":" "}]
[null,214,null,null,{"$f":"IFERROR(VLOOKUP(D228,Hoja1!$A$3:$C$144,3,FALSE),\" \")","v":" "}]
[null,215,null,null,{"$f":"IFERROR(VLOOKUP(D229,Hoja1!$A$3:$C$144,3,FALSE),\" \")","v":" "}]
[null,216,null,null,{"$f":"IFERROR(VLOOKUP(D230,Hoja1!$A$3:$C$144,3,FALSE),\" \")","v":" "}]
[null,217,null,null,{"$f":"IFERROR(VLOOKUP(D231,Hoja1!$A$3:$C$144,3,FALSE),\" \")","v":" "}]
[null,218,null,null,{"$f":"IFERROR(VLOOKUP(D232,Hoja1!$A$3:$C$144,3,FALSE),\" \")","v":" "}]
[null,219,null,null,{"$f":"IFERROR(VLOOKUP(D233,Hoja1!$A$3:$C$144,3,FALSE),\" \")","v":" "}]
[null,220,null,null,{"$f":"IFERROR(VLOOKUP(D234,Hoja1!$A$3:$C$144,3,FALSE),\" \")","v":" "}]
[null,221,null,null,{"$f":"IFERROR(VLOOKUP(D235,Hoja1!$A$3:$C$144,3,FALSE),\" \")","v":" "}]
[null,222,null,null,{"$f":"IFERROR(VLOOKUP(D236,Hoja1!$A$3:$C$144,3,FALSE),\" \")","v":" "}]
[null,223,null,null,{"$f":"IFERROR(VLOOKUP(D237,Hoja1!$A$3:$C$144,3,FALSE),\" \")","v":" "}]
[null,224,null,null,{"$f":"IFERROR(VLOOKUP(D238,Hoja1!$A$3:$C$144,3,FALSE),\" \")","v":" "}]
[null,225,null,null,{"$f":"IFERROR(VLOOKUP(D239,Hoja1!$A$3:$C$144,3,FALSE),\" \")","v":" "}]
[null,226,null,null,{"$f":"IFERROR(VLOOKUP(D240,Hoja1!$A$3:$C$144,3,FALSE),\" \")","v":" "}]
[null,227,null,null,{"$f":"IFERROR(VLOOKUP(D241,Hoja1!$A$3:$C$144,3,FALSE),\" \")","v":" "}]
[null,228,null,null,{"$f":"IFERROR(VLOOKUP(D242,Hoja1!$A$3:$C$144,3,FALSE),\" \")","v":" "}]
[null,{"$f":"+B242+1","v":229},null,null,{"$f":"IFERROR(VLOOKUP(D243,Hoja1!$A$3:$C$144,3,FALSE),\" \")","v":" "}]
[null,230,null,null,{"$f":"IFERROR(VLOOKUP(D244,Hoja1!$A$3:$C$144,3,FALSE),\" \")","v":" "}]
[null,231,null,null,{"$f":"IFERROR(VLOOKUP(D245,Hoja1!$A$3:$C$144,3,FALSE),\" \")","v":" "}]
[null,232,null,null,{"$f":"IFERROR(VLOOKUP(D246,Hoja1!$A$3:$C$144,3,FALSE),\" \")","v":" "}]
[null,233,null,null,{"$f":"IFERROR(VLOOKUP(D247,Hoja1!$A$3:$C$144,3,FALSE),\" \")","v":" "}]
[null,234,null,null,{"$f":"IFERROR(VLOOKUP(D248,Hoja1!$A$3:$C$144,3,FALSE),\" \")","v":" "}]
[null,235,null,null,{"$f":"IFERROR(VLOOKUP(D249,Hoja1!$A$3:$C$144,3,FALSE),\" \")","v":" "}]
[null,236,null,null,{"$f":"IFERROR(VLOOKUP(D250,Hoja1!$A$3:$C$144,3,FALSE),\" \")","v":" "}]
[null,237,null,null,{"$f":"IFERROR(VLOOKUP(D251,Hoja1!$A$3:$C$144,3,FALSE),\" \")","v":" "}]
[null,238,null,null,{"$f":"IFERROR(VLOOKUP(D252,Hoja1!$A$3:$C$144,3,FALSE),\" \")","v":" "}]
[null,239,null,null,{"$f":"IFERROR(VLOOKUP(D253,Hoja1!$A$3:$C$144,3,FALSE),\" \")","v":" "}]
[null,240,null,null,{"$f":"IFERROR(VLOOKUP(D254,Hoja1!$A$3:$C$144,3,FALSE),\" \")","v":" "}]
[null,241,null,null,{"$f":"IFERROR(VLOOKUP(D255,Hoja1!$A$3:$C$144,3,FALSE),\" \")","v":" "}]
[null,242,null,null,{"$f":"IFERROR(VLOOKUP(D256,Hoja1!$A$3:$C$144,3,FALSE),\" \")","v":" "}]
[null,243,null,null,{"$f":"IFERROR(VLOOKUP(D257,Hoja1!$A$3:$C$144,3,FALSE),\" \")","v":" "}]
[null,244,null,null,{"$f":"IFERROR(VLOOKUP(D258,Hoja1!$A$3:$C$144,3,FALSE),\" \")","v":" "}]
[null,245,null,null,{"$f":"IFERROR(VLOOKUP(D259,Hoja1!$A$3:$C$144,3,FALSE),\" \")","v":" "}]
[null,246,null,null,{"$f":"IFERROR(VLOOKUP(D260,Hoja1!$A$3:$C$144,3,FALSE),\" \")","v":" "}]
[null,247,null,null,{"$f":"IFERROR(VLOOKUP(D261,Hoja1!$A$3:$C$144,3,FALSE),\" \")","v":" "}]
[null,248,null,null,{"$f":"IFERROR(VLOOKUP(D262,Hoja1!$A$3:$C$144,3,FALSE),\" \")","v":" "}]
[null,249,null,null,{"$f":"IFERROR(VLOOKUP(D263,Hoja1!$A$3:$C$144,3,FALSE),\" \")","v":" "}]
[null,250,null,null,{"$f":"IFERROR(VLOOKUP(D264,Hoja1!$A$3:$C$144,3,FALSE),\" \")","v":" "}]
[null,251,null,null,{"$f":"IFERROR(VLOOKUP(D265,Hoja1!$A$3:$C$144,3,FALSE),\" \")","v":" "}]
[null,252,null,null,{"$f":"IFERROR(VLOOKUP(D266,Hoja1!$A$3:$C$144,3,FALSE),\" \")","v":" "}]
[null,253,null,null,{"$f":"IFERROR(VLOOKUP(D267,Hoja1!$A$3:$C$144,3,FALSE),\" \")","v":" "}]
[null,254,null,null,{"$f":"IFERROR(VLOOKUP(D268,Hoja1!$A$3:$C$144,3,FALSE),\" \")","v":" "}]
[null,255,null,null,{"$f":"IFERROR(VLOOKUP(D269,Hoja1!$A$3:$C$144,3,FALSE),\" \")","v":" "}]
[null,256,null,null,{"$f":"IFERROR(VLOOKUP(D270,Hoja1!$A$3:$C$144,3,FALSE),\" \")","v":" "}]
[null,257,null,null,{"$f":"IFERROR(VLOOKUP(D271,Hoja1!$A$3:$C$144,3,FALSE),\" \")","v":" "}]
[null,258,null,null,{"$f":"IFERROR(VLOOKUP(D272,Hoja1!$A$3:$C$144,3,FALSE),\" \")","v":" "}]
[null,259,null,null,{"$f":"IFERROR(VLOOKUP(D273,Hoja1!$A$3:$C$144,3,FALSE),\" \")","v":" "}]
[null,260,null,null,{"$f":"IFERROR(VLOOKUP(D274,Hoja1!$A$3:$C$144,3,FALSE),\" \")","v":" "}]
[null,261,null,null,{"$f":"IFERROR(VLOOKUP(D275,Hoja1!$A$3:$C$144,3,FALSE),\" \")","v":" "}]
[null,262,null,null,{"$f":"IFERROR(VLOOKUP(D276,Hoja1!$A$3:$C$144,3,FALSE),\" \")","v":" "}]
[null,263,null,null,{"$f":"IFERROR(VLOOKUP(D277,Hoja1!$A$3:$C$144,3,FALSE),\" \")","v":" "}]
[null,264,null,null,{"$f":"IFERROR(VLOOKUP(D278,Hoja1!$A$3:$C$144,3,FALSE),\" \")","v":" "}]
[null,265,null,null,{"$f":"IFERROR(VLOOKUP(D279,Hoja1!$A$3:$C$144,3,FALSE),\" \")","v":" "}]
[null,266,null,null,{"$f":"IFERROR(VLOOKUP(D280,Hoja1!$A$3:$C$144,3,FALSE),\" \")","v":" "}]
[null,267,null,null,{"$f":"IFERROR(VLOOKUP(D281,Hoja1!$A$3:$C$144,3,FALSE),\" \")","v":" "}]
[null,268,null,null,{"$f":"IFERROR(VLOOKUP(D282,Hoja1!$A$3:$C$144,3,FALSE),\" \")","v":" "}]
[null,269,null,null,{"$f":"IFERROR(VLOOKUP(D283,Hoja1!$A$3:$C$144,3,FALSE),\" \")","v":" "}]
[null,270,null,null,{"$f":"IFERROR(VLOOKUP(D284,Hoja1!$A$3:$C$144,3,FALSE),\" \")","v":" "}]
[null,271,null,null,{"$f":"IFERROR(VLOOKUP(D285,Hoja1!$A$3:$C$144,3,FALSE),\" \")","v":" "}]
[null,272,null,null,{"$f":"IFERROR(VLOOKUP(D286,Hoja1!$A$3:$C$144,3,FALSE),\" \")","v":" "}]
[null,273,null,null,{"$f":"IFERROR(VLOOKUP(D287,Hoja1!$A$3:$C$144,3,FALSE),\" \")","v":" "}]
[null,274,null,null,{"$f":"IFERROR(VLOOKUP(D288,Hoja1!$A$3:$C$144,3,FALSE),\" \")","v":" "}]
[null,275,null,null,{"$f":"IFERROR(VLOOKUP(D289,Hoja1!$A$3:$C$144,3,FALSE),\" \")","v":" "}]
[null,276,null,null,{"$f":"IFERROR(VLOOKUP(D290,Hoja1!$A$3:$C$144,3,FALSE),\" \")","v":" "}]
[null,277,null,null,{"$f":"IFERROR(VLOOKUP(D291,Hoja1!$A$3:$C$144,3,FALSE),\" \")","v":" "}]
[null,278,null,null,{"$f":"IFERROR(VLOOKUP(D292,Hoja1!$A$3:$C$144,3,FALSE),\" \")","v":" "}]
[null,279,null,null,{"$f":"IFERROR(VLOOKUP(D293,Hoja1!$A$3:$C$144,3,FALSE),\" \")","v":" "}]
[null,280,null,null,{"$f":"IFERROR(VLOOKUP(D294,Hoja1!$A$3:$C$144,3,FALSE),\" \")","v":" "}]
[null,281,null,null,{"$f":"IFERROR(VLOOKUP(D295,Hoja1!$A$3:$C$144,3,FALSE),\" \")","v":" "}]
[null,282,null,null,{"$f":"IFERROR(VLOOKUP(D296,Hoja1!$A$3:$C$144,3,FALSE),\" \")","v":" "}]
[null,283,null,null,{"$f":"IFERROR(VLOOKUP(D297,Hoja1!$A$3:$C$144,3,FALSE),\" \")","v":" "}]
[null,284,null,null,{"$f":"IFERROR(VLOOKUP(D298,Hoja1!$A$3:$C$144,3,FALSE),\" \")","v":" "}]
[null,285,null,null,{"$f":"IFERROR(VLOOKUP(D299,Hoja1!$A$3:$C$144,3,FALSE),\" \")","v":" "}]
[null,286,null,null,{"$f":"IFERROR(VLOOKUP(D300,Hoja1!$A$3:$C$144,3,FALSE),\" \")","v":" "}]
[null,287,null,null,{"$f":"IFERROR(VLOOKUP(D301,Hoja1!$A$3:$C$144,3,FALSE),\" \")","v":" "}]
[null,288,null,null,{"$f":"IFERROR(VLOOKUP(D302,Hoja1!$A$3:$C$144,3,FALSE),\" \")","v":" "}]
[null,289,null,null,{"$f":"IFERROR(VLOOKUP(D303,Hoja1!$A$3:$C$144,3,FALSE),\" \")","v":" "}]
[null,290,null,null,{"$f":"IFERROR(VLOOKUP(D304,Hoja1!$A$3:$C$144,3,FALSE),\" \")","v":" "}]
[null,291,null,null,{"$f":"IFERROR(VLOOKUP(D305,Hoja1!$A$3:$C$144,3,FALSE),\" \")","v":" "}]
[null,292,null,null,{"$f":"IFERROR(VLOOKUP(D306,Hoja1!$A$3:$C$144,3,FALSE),\" \")","v":" "}]
[null,{"$f":"+B306+1","v":293},null,null,{"$f":"IFERROR(VLOOKUP(D307,Hoja1!$A$3:$C$144,3,FALSE),\" \")","v":" "}]
[null,294,null,null,{"$f":"IFERROR(VLOOKUP(D308,Hoja1!$A$3:$C$144,3,FALSE),\" \")","v":" "}]
[null,295,null,null,{"$f":"IFERROR(VLOOKUP(D309,Hoja1!$A$3:$C$144,3,FALSE),\" \")","v":" "}]
[null,296,null,null,{"$f":"IFERROR(VLOOKUP(D310,Hoja1!$A$3:$C$144,3,FALSE),\" \")","v":" "}]
[null,297,null,null,{"$f":"IFERROR(VLOOKUP(D311,Hoja1!$A$3:$C$144,3,FALSE),\" \")","v":" "}]
[null,298,null,null,{"$f":"IFERROR(VLOOKUP(D312,Hoja1!$A$3:$C$144,3,FALSE),\" \")","v":" "}]
[null,299,null,null,{"$f":"IFERROR(VLOOKUP(D313,Hoja1!$A$3:$C$144,3,FALSE),\" \")","v":" "}]
[null,300,null,null,{"$f":"IFERROR(VLOOKUP(D314,Hoja1!$A$3:$C$144,3,FALSE),\" \")","v":" "}]
[null,301,null,null,{"$f":"IFERROR(VLOOKUP(D315,Hoja1!$A$3:$C$144,3,FALSE),\" \")","v":" "}]
[null,302,null,null,{"$f":"IFERROR(VLOOKUP(D316,Hoja1!$A$3:$C$144,3,FALSE),\" \")","v":" "}]
[null,303,null,null,{"$f":"IFERROR(VLOOKUP(D317,Hoja1!$A$3:$C$144,3,FALSE),\" \")","v":" "}]
[null,304,null,null,{"$f":"IFERROR(VLOOKUP(D318,Hoja1!$A$3:$C$144,3,FALSE),\" \")","v":" "}]
[null,305,null,null,{"$f":"IFERROR(VLOOKUP(D319,Hoja1!$A$3:$C$144,3,FALSE),\" \")","v":" "}]
[null,306,null,null,{"$f":"IFERROR(VLOOKUP(D320,Hoja1!$A$3:$C$144,3,FALSE),\" \")","v":" "}]
[null,307,null,null,{"$f":"IFERROR(VLOOKUP(D321,Hoja1!$A$3:$C$144,3,FALSE),\" \")","v":" "}]
[null,308,null,null,{"$f":"IFERROR(VLOOKUP(D322,Hoja1!$A$3:$C$144,3,FALSE),\" \")","v":" "}]
[null,309,null,null,{"$f":"IFERROR(VLOOKUP(D323,Hoja1!$A$3:$C$144,3,FALSE),\" \")","v":" "}]
[null,310,null,null,{"$f":"IFERROR(VLOOKUP(D324,Hoja1!$A$3:$C$144,3,FALSE),\" \")","v":" "}]
[null,311,null,null,{"$f":"IFERROR(VLOOKUP(D325,Hoja1!$A$3:$C$144,3,FALSE),\" \")","v":" "}]
[null,312,null,null,{"$f":"IFERROR(VLOOKUP(D326,Hoja1!$A$3:$C$144,3,FALSE),\" \")","v":" "}]
[null,313,null,null,{"$f":"IFERROR(VLOOKUP(D327,Hoja1!$A$3:$C$144,3,FALSE),\" \")","v":" "}]
[null,314,null,null,{"$f":"IFERROR(VLOOKUP(D328,Hoja1!$A$3:$C$144,3,FALSE),\" \")","v":" "}]
[null,315,null,null,{"$f":"IFERROR(VLOOKUP(D329,Hoja1!$A$3:$C$144,3,FALSE),\" \")","v":" "}]
[null,316,null,null,{"$f":"IFERROR(VLOOKUP(D330,Hoja1!$A$3:$C$144,3,FALSE),\" \")","v":" "}]
[null,317,null,null,{"$f":"IFERROR(VLOOKUP(D331,Hoja1!$A$3:$C$144,3,FALSE),\" \")","v":" "}]
[null,318,null,null,{"$f":"IFERROR(VLOOKUP(D332,Hoja1!$A$3:$C$144,3,FALSE),\" \")","v":" "}]
[null,319,null,null,{"$f":"IFERROR(VLOOKUP(D333,Hoja1!$A$3:$C$144,3,FALSE),\" \")","v":" "}]
[null,320,null,null,{"$f":"IFERROR(VLOOKUP(D334,Hoja1!$A$3:$C$144,3,FALSE),\" \")","v":" "}]
[null,321,null,null,{"$f":"IFERROR(VLOOKUP(D335,Hoja1!$A$3:$C$144,3,FALSE),\" \")","v":" "}]
[null,322,null,null,{"$f":"IFERROR(VLOOKUP(D336,Hoja1!$A$3:$C$144,3,FALSE),\" \")","v":" "}]
[null,323,null,null,{"$f":"IFERROR(VLOOKUP(D337,Hoja1!$A$3:$C$144,3,FALSE),\" \")","v":" "}]
[null,324,null,null,{"$f":"IFERROR(VLOOKUP(D338,Hoja1!$A$3:$C$144,3,FALSE),\" \")","v":" "}]
[null,325,null,null,{"$f":"IFERROR(VLOOKUP(D339,Hoja1!$A$3:$C$144,3,FALSE),\" \")","v":" "}]
[null,326,null,null,{"$f":"IFERROR(VLOOKUP(D340,Hoja1!$A$3:$C$144,3,FALSE),\" \")","v":" "}]
[null,327,null,null,{"$f":"IFERROR(VLOOKUP(D341,Hoja1!$A$3:$C$144,3,FALSE),\" \")","v":" "}]
[null,328,null,null,{"$f":"IFERROR(VLOOKUP(D342,Hoja1!$A$3:$C$144,3,FALSE),\" \")","v":" "}]
[null,329,null,null,{"$f":"IFERROR(VLOOKUP(D343,Hoja1!$A$3:$C$144,3,FALSE),\" \")","v":" "}]
[null,330,null,null,{"$f":"IFERROR(VLOOKUP(D344,Hoja1!$A$3:$C$144,3,FALSE),\" \")","v":" "}]
[null,331,null,null,{"$f":"IFERROR(VLOOKUP(D345,Hoja1!$A$3:$C$144,3,FALSE),\" \")","v":" "}]
[null,332,null,null,{"$f":"IFERROR(VLOOKUP(D346,Hoja1!$A$3:$C$144,3,FALSE),\" \")","v":" "}]
[null,333,null,null,{"$f":"IFERROR(VLOOKUP(D347,Hoja1!$A$3:$C$144,3,FALSE),\" \")","v":" "}]
[null,334,null,null,{"$f":"IFERROR(VLOOKUP(D348,Hoja1!$A$3:$C$144,3,FALSE),\" \")","v":" "}]
[null,335,null,null,{"$f":"IFERROR(VLOOKUP(D349,Hoja1!$A$3:$C$144,3,FALSE),\" \")","v":" "}]
[null,336,null,null,{"$f":"IFERROR(VLOOKUP(D350,Hoja1!$A$3:$C$144,3,FALSE),\" \")","v":" "}]
[null,337,null,null,{"$f":"IFERROR(VLOOKUP(D351,Hoja1!$A$3:$C$144,3,FALSE),\" \")","v":" "}]
[null,338,null,null,{"$f":"IFERROR(VLOOKUP(D352,Hoja1!$A$3:$C$144,3,FALSE),\" \")","v":" "}]
[null,339,null,null,{"$f":"IFERROR(VLOOKUP(D353,Hoja1!$A$3:$C$144,3,FALSE),\" \")","v":" "}]
[null,340,null,null,{"$f":"IFERROR(VLOOKUP(D354,Hoja1!$A$3:$C$144,3,FALSE),\" \")","v":" "}]
[null,341,null,null,{"$f":"IFERROR(VLOOKUP(D355,Hoja1!$A$3:$C$144,3,FALSE),\" \")","v":" "}]
[null,342,null,null,{"$f":"IFERROR(VLOOKUP(D356,Hoja1!$A$3:$C$144,3,FALSE),\" \")","v":" "}]
[null,343,null,null,{"$f":"IFERROR(VLOOKUP(D357,Hoja1!$A$3:$C$144,3,FALSE),\" \")","v":" "}]
[null,344,null,null,{"$f":"IFERROR(VLOOKUP(D358,Hoja1!$A$3:$C$144,3,FALSE),\" \")","v":" "}]
[null,345,null,null,{"$f":"IFERROR(VLOOKUP(D359,Hoja1!$A$3:$C$144,3,FALSE),\" \")","v":" "}]
[null,346,null,null,{"$f":"IFERROR(VLOOKUP(D360,Hoja1!$A$3:$C$144,3,FALSE),\" \")","v":" "}]
[null,347,null,null,{"$f":"IFERROR(VLOOKUP(D361,Hoja1!$A$3:$C$144,3,FALSE),\" \")","v":" "}]
[null,348,null,null,{"$f":"IFERROR(VLOOKUP(D362,Hoja1!$A$3:$C$144,3,FALSE),\" \")","v":" "}]
[null,349,null,null,{"$f":"IFERROR(VLOOKUP(D363,Hoja1!$A$3:$C$144,3,FALSE),\" \")","v":" "}]
[null,350,null,null,{"$f":"IFERROR(VLOOKUP(D364,Hoja1!$A$3:$C$144,3,FALSE),\" \")","v":" "}]

{"sheet":"Hoja1","index":1,"n_rows":144,"n_cols":5,"rows_kept":144,"cut":false,"hidden":true,"merged":[]}
[]
["Nombre del Servicio","GENÉRICO","TIPO","Cargo* (Dólares)","Segmento"]
["Activación de cuenta de ahorros","Activación de cuentas","BÁSICOS",0,"Todos"]
["Activación de tarjeta de crédito nacional o internacional","Activación de cuentas","BÁSICOS",0,1]
["Activación de tarjeta de débito y/o pago nacional o internacional","Activación de cuentas","BÁSICOS",0,"Todos"]
["Administración, mantenimiento, mantención y manejo de cuentas cuenta de ahorros","Administración, mantenimiento, mantención y manejo de cuentas","BÁSICOS",0,"Todos"]
["Administración, mantenimiento, mantención y manejo de cuentas depósitos a plazos","Administración, mantenimiento, mantención y manejo de cuentas","BÁSICOS",0,"Todos"]
["Administración, mantenimiento, mantención y manejo de cuentas inversiones","Administración, mantenimiento, mantención y manejo de cuentas","BÁSICOS",0,"Todos"]
["Afiliación y renovación de tarjetas de crédito empresarial","Afiliación y renovación de tarjetas de crédito","BÁSICOS",0,1]
["Afiliación y renovación de tarjetas de crédito marca compartida","Afiliación y renovación de tarjetas de crédito","BÁSICOS",0,1]
["Afiliación y renovación de tarjetas de crédito persona natural","Afiliación y renovación de tarjetas de crédito","BÁSICOS",0,1]
["Afiliación y renovación de tarjetas de crédito sistema cerrado","Afiliación y renovación de tarjetas de crédito","BÁSICOS",0,1]
["Afiliación y renovación de tarjetas de crédito tarjeta básica","Afiliación y renovación de tarjetas de crédito","BÁSICOS",0,1]
["Apertura de cuenta de integración de capital","Apertura de cuentas","BÁSICOS",0,"Todos"]
["Apertura de cuentas de ahorros ","Apertura de cuentas","BÁSICOS",0,"Todos"]
["Apertura de cuentas inversiones","Apertura de cuentas","BÁSICOS",0,"Todos"]
["Apertura de depósitos a plazo","Apertura de cuentas","BÁSICOS",0,"Todos"]
["Bloqueo, anulación o cancelación de tarjeta crédito","Bloqueo, anulación o cancelación","BÁSICOS",0,1]
["Bloqueo, anulación o cancelación de tarjeta de débito y/o pago","Bloqueo, anulación o cancelación","BÁSICOS",0,"Todos"]
["Cancelación o cierre de cuentas  de ahorros","Cancelación o cierre de cuentas","BÁSICOS",0,"Todos"]
["Cargos a establecimientos comerciales (educación) por consumos con tarjetas de crédito corriente/rotativo (%)","Servicios a establecimientos por consumo pagados con tarjetas","MÁXIMOS",4.02E-2,1]
["Cargos a establecimientos comerciales (salud y afines) por consumos con tarjetas de crédito corriente/rotativo (%)","Servicios a establecimientos por consumo pagados con tarjetas","MÁXIMOS",4.02E-2,1]
["Cargos a establecimientos comerciales por consumos con tarjetas de crédito corriente/rotativo (%)","Servicios a establecimientos por consumo pagados con tarjetas","MÁXIMOS",4.02E-2,1]
["Cargos a establecimientos comerciales por consumos con tarjetas de débito/prepago (%)","Servicios a establecimientos por consumo pagados con tarjetas","MÁXIMOS",0.02,"Todos"]
["Cheque de emergencia","Servicios con cheques","MÁXIMOS",2.23,"Todos"]
["Cheque devuelto del exterior","Servicios con cheques","MÁXIMOS",2.89,"Todos"]
["Cheque devuelto nacional (1)","Servicios con cheques","MÁXIMOS",2.4900000000000002,"Todos"]
["Cobranza extrajudicial rango de cuota de $ 100 a 199  (de 1 a 30 días)","Gestión de cobranza extrajudicial ","MÁXIMOS",7.35,"Todos"]
["Cobranza extrajudicial rango de cuota de $ 100 a 199  (de 31 a 60 días)","Gestión de cobranza extrajudicial ","MÁXIMOS",16.46,"Todos"]
["Cobranza extrajudicial rango de cuota de $ 100 a 199  (de 61 a 90 días)","Gestión de cobranza extrajudicial ","MÁXIMOS",23.85,"Todos"]
["Cobranza extrajudicial rango de cuota de $ 100 a 199  (más de 90 días)","Gestión de cobranza extrajudicial ","MÁXIMOS",26.64,"Todos"]
["Cobranza extrajudicial rango de cuota de $ 200 a 299  (de 1 a 30 días)","Gestión de cobranza extrajudicial ","MÁXIMOS",7.92,"Todos"]
["Cobranza extrajudicial rango de cuota de $ 200 a 299  (de 31 a 60 días)","Gestión de cobranza extrajudicial ","MÁXIMOS",17.829999999999998,"Todos"]
["Cobranza extrajudicial rango de cuota de $ 200 a 299  (de 61 a 90 días)","Gestión de cobranza extrajudicial ","MÁXIMOS",25.27,"Todos"]
["Cobranza extrajudicial rango de cuota de $ 200 a 299  (más de 90 días)","Gestión de cobranza extrajudicial ","MÁXIMOS",29.03,"Todos"]
["Cobranza extrajudicial rango de cuota de $ 300 a 499  (de 1 a 30 días)","Gestión de cobranza extrajudicial ","MÁXIMOS",8.32,"Todos"]
["Cobranza extrajudicial rango de cuota de $ 300 a 499  (de 31 a 60 días)","Gestión de cobranza extrajudicial ","MÁXIMOS",20.34,"Todos"]
["Cobranza extrajudicial rango de cuota de $ 300 a 499  (de 61 a 90 días)","Gestión de cobranza extrajudicial ","MÁXIMOS",27.43,"Todos"]
["Cobranza extrajudicial rango de cuota de $ 300 a 499  (más de 90 días)","Gestión de cobranza extrajudicial ","MÁXIMOS",32.72,"Todos"]
["Cobranza extrajudicial rango de cuota de $ 500 a 999  (de 1 a 30 días)","Gestión de cobranza extrajudicial ","MÁXIMOS",8.6300000000000008,"Todos"]
["Cobranza extrajudicial rango de cuota de $ 500 a 999  (de 31 a 60 días)","Gestión de cobranza extrajudicial ","MÁXIMOS",23.99,"Todos"]
["Cobranza extrajudicial rango de cuota de $ 500 a 999  (de 61 a 90 días)","Gestión de cobranza extrajudicial ","MÁXIMOS",30.34,"Todos"]
["Cobranza extrajudicial rango de cuota de $ 500 a 999  (más de 90 días)","Gestión de cobranza extrajudicial ","MÁXIMOS",37.700000000000003,"Todos"]
["Cobranza extrajudicial rango de cuota mayor a $ 1.000  (de 1 a 30 días)","Gestión de cobranza extrajudicial ","MÁXIMOS",8.8800000000000008,"Todos"]
["Cobranza extrajudicial rango de cuota mayor a $ 1.000  (de 31 a 60 días)","Gestión de cobranza extrajudicial ","MÁXIMOS",28.78,"Todos"]
["Cobranza extrajudicial rango de cuota mayor a $ 1.000  (de 61 a 90 días)","Gestión de cobranza extrajudicial ","MÁXIMOS",34.01,"Todos"]
["Cobranza extrajudicial rango de cuota mayor a $ 1.000  (más de 90 días)","Gestión de cobranza extrajudicial ","MÁXIMOS",43.99,"Todos"]
["Cobranza extrajudicial rango de cuota menor a $ 100  (de 1 a 30 días)","Gestión de cobranza extrajudicial ","MÁXIMOS",6.38,"Todos"]
["Cobranza extrajudicial rango de cuota menor a $ 100 (de 31 a 60 días)","Gestión de cobranza extrajudicial ","MÁXIMOS",16.23,"Todos"]
["Cobranza extrajudicial rango de cuota menor a $ 100 (de 61 a 90 días)","Gestión de cobranza extrajudicial ","MÁXIMOS",23.17,"Todos"]
["Cobranza extrajudicial rango de cuota menor a $ 100 (más de 90 días)","Gestión de cobranza extrajudicial ","MÁXIMOS",25.56,"Todos"]
["Confirmaciones financieras para auditores externos","Servicios de referencias","MÁXIMOS",2.37,"Todos"]
["Consulta de cuentas, canal celular","Consulta de cuentas","BÁSICOS",0,"Todos"]
["Consulta de cuentas, canal telefónico","Consulta de cuentas","BÁSICOS",0,"Todos"]
["Consulta de cuentas, internet","Consulta de cuentas","BÁSICOS",0,"Todos"]
["Consulta de cuentas, oficina","Consulta de cuentas","BÁSICOS",0,"Todos"]
["Consulta impresa de saldos por cajero automático","Servicios de consulta","MÁXIMOS",0.31,"Todos"]
["Consulta visual de cuentas, cajero automático","Consulta de cuentas","BÁSICOS",0,"Todos"]
["Consultas en el exterior en cajeros automáticos (2)","Servicios de consultas con tarjetas en el exterior","MÁXIMOS",0.89,"Todos"]
["Consumo en gasolineras con tarjeta de crédito, débito y prepago","Servicios de consumos nacionales ","MÁXIMOS",0.23,"Todos"]
["Consumos en el exterior con tarjetas por montos mayores a $100 (3)","Servicios de consumos con tarjetas en el exterior","MÁXIMOS",1.7,"Todos"]
["Copia de estado de cuenta de tarjeta de crédito","Servicios de copias","MÁXIMOS",0.45,1]
["Copia de voucher/vale del exterior, aplica a tarjeta de crédito","Servicios de copias","MÁXIMOS",8.93,1]
["Copia de voucher/vale local aplica a tarjeta de crédito","Servicios de copias","MÁXIMOS",1.79,1]
["Corte de movimientos de cuenta de cualquier  tipo de cuenta y por cualquier medio, a excepción de entrega en oficina en la entidad","Consulta de cuentas","BÁSICOS",0,"Todos"]
["Corte impreso de movimientos de cuentas para cualquier tipo de cuentas y entregado en oficinas de la entidad por solicitud expresa del socio/cliente (4)","Servicios de referencias","MÁXIMOS",1.63,"Todos"]
["Depósitos  cuentas de ahorros","Depósitos a cuentas","BÁSICOS",0,"Todos"]
["Depósitos  inversiones","Depósitos a cuentas","BÁSICOS",0,"Todos"]
["Depósitos a plazos","Depósitos a cuentas","BÁSICOS",0,"Todos"]
["Depósitos o retiros a través de las ventanillas compartidas de otras instituciones financieras o corresponsales solidarios","Servicios de ventanilla compartida ","MÁXIMOS",0.35,"Todos"]
["Descarga de tarjeta prepago en corresponsal solidario (8)","Servicios para tarjetas prepago","MÁXIMOS",0.31,"Todos"]
["Emisión de plástico de tarjeta de crédito con chip (5)","Servicios de emisión","MÁXIMOS",5.36,1]
["Emisión de plástico de tarjeta de débito con chip (5)","Servicios de emisión","MÁXIMOS",5.36,"Todos"]
["Emisión de plástico de tarjeta de débito/crédito con banda lectora","Servicios de emisión","BÁSICOS",0,"Todos"]
["Emisión de referencias financieras","Servicios de referencias","MÁXIMOS",4.46,"Todos"]
["Emisión de tabla de amortización, primera impresión","Emisión de tabla de amortización","BÁSICOS",0,"Todos"]
["Emisión de tarjeta prepago recargable con chip (incluye la primera carga) (7)","Servicios para tarjetas prepago","MÁXIMOS",5.36,"Todos"]
["Emisión y entrega de estados de cuenta a domicilio (tarjetas de crédito)","Servicios con estados de cuenta","MÁXIMOS",1.66,1]
["Emisión y entrega de estados de cuenta de todo tipo de cuenta por medios electrónicos y emisión y entrega física para todas las cuentas (a excepción de tarjeta de crédito) ","Emisión y entrega de estado de cuenta","BÁSICOS",0,"Todos"]
["Frecuencia de transacciones cuenta de ahorros","Frecuencia de transacciones","BÁSICOS",0,"Todos"]
["Frecuencia de transacciones tarjeta de crédito","Frecuencia de transacciones","BÁSICOS",0,1]
["Mantenimiento de tarjeta de crédito","Mantenimiento de tarjeta de crédito","BÁSICOS",0,1]
["Mantenimiento de tarjeta de débito","Mantenimiento de tarjeta de débito","BÁSICOS",0,"Todos"]
["Mantenimiento pago mínimo de tarjeta de crédito","Mantenimiento de tarjeta de crédito","BÁSICOS",0,1]
["Mantenimiento pago total de tarjeta de crédito","Mantenimiento de tarjeta de crédito","BÁSICOS",0,1]
["Pagos a tarjeta de crédito, por los diferentes canales","Pagos a tarjeta de crédito","BÁSICOS",0,1]
["Planes de recompensa en tarjetas de crédito segmento A+","Servicios para tarjetas de crédito","MÁXIMOS",44,1]
["Planes de recompensa en tarjetas de crédito segmento AA+","Servicios para tarjetas de crédito","MÁXIMOS",54,1]
["Planes de recompensa en tarjetas de crédito segmento B+","Servicios para tarjetas de crédito","MÁXIMOS",28,1]
["Planes de recompensa en tarjetas de crédito segmento C+","Servicios para tarjetas de crédito","MÁXIMOS",23,1]
["Planes de recompensa en tarjetas de crédito segmento D+","Servicios para tarjetas de crédito","MÁXIMOS",10,1]
["Planes de recompensa en tarjetas de crédito segmento E+","Servicios para tarjetas de crédito","MÁXIMOS",5,1]
["Prestaciones en el exterior de tarjetas de crédito segmento A+ y A","Servicios para tarjetas de crédito","MÁXIMOS",20,1]
["Prestaciones en el exterior de tarjetas de crédito segmento AA+ y AA","Servicios para tarjetas de crédito","MÁXIMOS",24,1]
["Prestaciones en el exterior de tarjetas de crédito segmento B+ y B","Servicios para tarjetas de crédito","MÁXIMOS",16,1]
["Prestaciones en el exterior de tarjetas de crédito segmento C+ y C","Servicios para tarjetas de crédito","MÁXIMOS",11,1]
["Prestaciones en el exterior de tarjetas de crédito segmento D+ y D","Servicios para tarjetas de crédito","MÁXIMOS",7,1]
["Recarga de tarjeta prepago en corresponsal solidario (8)","Servicios para tarjetas prepago","MÁXIMOS",0.31,"Todos"]
["Reclamos de socios/clientes injustificados","Reclamos de socios/clientes","BÁSICOS",0,"Todos"]
["Reclamos de socios/clientes justificados","Reclamos de socios/clientes","BÁSICOS",0,"Todos"]
["Renovación anual de tarjeta de débito con banda lectora o chip","Servicios de renovación","MÁXIMOS",1.79,"Todos"]
["Renovación de plástico de tarjeta crédito con chip (6)","Servicios de renovación","MÁXIMOS",5.36,1]
["Renovación de plástico de tarjeta de débito con chip (6)","Servicios de renovación","MÁXIMOS",5.36,"Todos"]
["Renovación de plástico de tarjeta prepago recargable con chip","Servicios para tarjetas prepago","MÁXIMOS",5.36,"Todos"]
["Renovación de plásticos de tarjeta de débito/crédito con banda lectora","Servicios de renovación","BÁSICOS",0,1]
["Renovación del servicio anual de tarjeta prepago recargable","Servicios para tarjetas prepago","MÁXIMOS",1.79,"Todos"]
["Reposición de tarjeta de crédito/tarjeta de débito (banda/chip) por pérdida, robo o deterioro físico con excepción de los casos de fallas en la banda lectora o chip","Servicios de reposición","MÁXIMOS",5.36,"Todos"]
["Reposición de tarjeta de crédito/tarjeta de débito por migración, por actualización o por fallas en la banda lectora o chip","Reposición por actualización","BÁSICOS",0,"Todos"]
["Reposición de tarjeta prepago recargable con chip","Servicios para tarjetas prepago","MÁXIMOS",5.36,"Todos"]
["Reposición libreta/cartola/estado de cuenta por actualización","Reposición por actualización","BÁSICOS",0,"Todos"]
["Reposición libreta/cartola/estado de cuenta por pérdida, robo o deterioro","Servicios de reposición","MÁXIMOS",0.89,"Todos"]
["Retiro cajero automático socios/clientes de la propia entidad en cajero de otra entidad ","Servicios de retiros","MÁXIMOS",0.45,"Todos"]
["Retiro cajero automático socios/clientes de otra entidad en cajero de la entidad (2)","Servicios de retiros","MÁXIMOS",0.45,"Todos"]
["Retiro de dinero por cajero automático socios/clientes propia entidad","Retiros de dinero","BÁSICOS",0,"Todos"]
["Retiro de dinero por ventanilla  de la propia entidad","Retiros de dinero","BÁSICOS",0,"Todos"]
["Retiro de efectivo en corresponsales solidarios de la propia entidad (3)","Servicios de retiros","MÁXIMOS",0.31,"Todos"]
["Retiro de efectivo en el exterior en cajeros automáticos (1)","Servicios de retiros con tarjetas en el exterior","MÁXIMOS",4.46,"Todos"]
["Servicios de Recaudaciones (cobro) banca celular","Recaudaciones de pagos a terceros","MÁXIMOS",0.31,"Todos"]
["Servicios de Recaudaciones (cobro) banca telefónica","Recaudaciones de pagos a terceros","MÁXIMOS",0.31,"Todos"]
["Servicios de Recaudaciones (cobro) cajeros automáticos","Recaudaciones de pagos a terceros","MÁXIMOS",0.54,"Todos"]
["Servicios de Recaudaciones (cobro) corresponsal solidario","Recaudaciones de pagos a terceros","MÁXIMOS",0.54,"Todos"]
["Servicios de Recaudaciones (cobro) entidades de servicios auxiliares del sistema financiero","Recaudaciones de pagos a terceros","MÁXIMOS",0.54,"Todos"]
["Servicios de Recaudaciones (cobro) internet","Recaudaciones de pagos a terceros","MÁXIMOS",0.31,"Todos"]
["Servicios de Recaudaciones (cobro) oficina (ventanillas de la entidad)","Recaudaciones de pagos a terceros","MÁXIMOS",0.54,"Todos"]
["Servicios de Recaudaciones (cobro) tarjeta de crédito POS","Recaudaciones de pagos a terceros","MÁXIMOS",0.31,1]
["Servicios de Recaudaciones (cobro) tarjeta de débito POS","Recaudaciones de pagos a terceros","MÁXIMOS",0.31,"Todos"]
["Servicios de Recaudaciones (cobro) tarjeta prepago POS","Recaudaciones de pagos a terceros","MÁXIMOS",0.31,"Todos"]
["Servicios de Recaudaciones (cobro) terminal de autoservicios kiosko","Recaudaciones de pagos a terceros","MÁXIMOS",0.31,"Todos"]
["Servicios de Recaudaciones (cobro) ventanillas compartidas","Recaudaciones de pagos a terceros","MÁXIMOS",0.54,"Todos"]
["Transacciones fallidas en cajeros automáticos, todos los casos","Transacciones fallidas en cajeros automáticos","BÁSICOS",0,"Todos"]
["Transferencias dentro de la misma entidad, medios electrónicos (cajero automático, internet, teléfono, celular y otros)","Transferencias dentro de la misma entidad","BÁSICOS",0,"Todos"]
["Transferencias dentro de la misma entidad, medios físicos (ventanilla)","Transferencias dentro de la misma entidad","BÁSICOS",0,"Todos"]
["Transferencias enviadas al exterior por montos mayores a $1.000,00 y menores (o iguales) a $5.000,00","Servicios de transferencias","MÁXIMOS",66.36,"Todos"]
["Transferencias enviadas al exterior por montos mayores a $10.000,00","Servicios de transferencias","MÁXIMOS",100,"Todos"]
["Transferencias enviadas al exterior por montos mayores a $5.000,00 y menores (o iguales) a $10.000,00","Servicios de transferencias","MÁXIMOS",85.18,"Todos"]
["Transferencias enviadas al exterior por montos menores o iguales a $1.000,00","Servicios de transferencias","MÁXIMOS",49.54,"Todos"]
["Transferencias interbancarias SCI enviadas, internet","Servicios de transferencias","MÁXIMOS",0.25,"Todos"]
["Transferencias interbancarias SPI enviadas, internet","Servicios de transferencias","MÁXIMOS",0.45,"Todos"]
["Transferencias interbancarias SPI enviadas, oficina","Servicios de transferencias","MÁXIMOS",1.92,"Todos"]
["Transferencias interbancarias SPI recibidas","Servicios de transferencias","MÁXIMOS",0.27,"Todos"]
["Transferencias nacionales otras entidades oficina","Servicios de transferencias","MÁXIMOS",1.79,"Todos"]
["Transferencias recibidas desde el exterior","Servicios de transferencias","MÁXIMOS",8.93,"Todos"]
["Transferencias SCI enviadas, oficina","Servicios de transferencias","MÁXIMOS",1.72,"Todos"]
["Transferencias SCI recibidas","Servicios de transferencias","MÁXIMOS",0.27,"Todos"]

{"sheet":"LISTA 2","index":2,"n_rows":29,"n_cols":7,"rows_kept":29,"cut":false,"hidden":true,"merged":[]}
[]
[]
["TIPO DE SERVICIOS",null,"TIPO DE SERVICIOS",null,"QUIEN PAGA EL CARGO DEL SERVICIO",null,"QUIEN PRESTA EL SERVICIO"]
["Transacciones básicas",null,"Básicos",null,"Empresa privada",null,"Entidades (cooperativa/caja central)"]
["Tarifa máxima",null,"Máximos",null,"Empresa pública"]
["Tarifa diferenciado",null,"Diferenciados",null,"Socio/cliente"]
["No financieros"]
[]
["ADJUNTO"]
["No aplica"]
["Adjunto",null,null,null,"QUIEN CONTRATA EL SERVICIO"]
[null,null,null,null,"Empresa privada"]
[null,null,null,null,"Empresa pública"]
[null,null,"BENEFICIARIO",null,"Socio/cliente"]
[null,null,"Socio",null,"No aplica"]
[null,null,"Cliente"]
["ORGANISMO DE CONTROL",null,"Usuario",null,"CANALES"]
["SEPS",null,"Empresa privada",null,"Banca celular"]
["SBS",null,"Empresa pública",null,"Banca telefónica"]
["MIES",null,"Establecimientos",null,"Cajeros automáticos"]
[null,null,null,null,"Corresponsal solidario"]
[null,null,null,null,"Entidades de servicios auxiliares del sistema financiero"]
["√",null,null,null,"Internet"]
["-",null,null,null,"Oficina (ventanillas de la entidad)"]
[null,null,null,null,"Tarjeta de crédito POS"]
[null,null,null,null,"Tarjeta de débito POS"]
[null,null,null,null,"Tarjeta prepago POS"]
[null,null,null,null,"Terminal de autoservicios kiosko"]
[null,null,null,null,"Ventanillas compartidas"]